fUSD/lending_fUSD_20260415
["ID","MTS","AMOUNT","RATE_DAILY","PERIOD"]
[420511347,1776195034381,-1925.42,0.0001,2]
[420511348,1776195034391,-150.0,0.0001,2]
[420511349,1776195034400,-284.78,0.00010003,2]
[420511350,1776195034409,-275.55054348,0.00010118,2]
[420511351,1776195034419,-3000.1529,0.00010222,2]
[420511352,1776195034428,-150.0,0.0001025,2]
[420511353,1776195034437,-150.0,0.000104,2]
[420511354,1776195034447,-150.0,0.000105,2]
[420511355,1776195034458,-150.0,0.0001055,2]
[420511356,1776195034467,-153.63277467,0.000106,2]
[420511357,1776195034476,-275.55054348,0.000106,2]
[420511358,1776195034485,-221.0,0.00010641,2]
[420511359,1776195034494,-543.32194628,0.00010651,2]
[420511360,1776195034504,-500.0,0.00010673,2]
[420511361,1776195034513,-500.0,0.00010673,2]
[420511362,1776195034522,-501.12204549,0.00010673,2]
[420511363,1776195034532,-500.21459105,0.00010673,2]
[420511364,1776195034542,-500.0,0.00010673,2]
[420511365,1776195034552,-500.47252773,0.00010673,2]
[420511366,1776195034562,-500.0,0.00010673,2]
[420511367,1776195034572,-991.0,0.00010686,2]
[420511368,1776195034581,-150.0,0.00010698,2]
[420511369,1776195034591,-599.36959158,0.00010699,2]
[420511370,1776195034600,-597.31168316,0.00010699,2]
[420511371,1776195034611,-245.67827277,0.00010699,2]
[420511372,1776195034621,-500.0,0.00010699,2]
[420511373,1776195034630,-500.0,0.00010699,2]
[420511374,1776195034640,-602.5479957,0.00010699,2]
[420511375,1776195034650,-453.00439796,0.00010699,2]
[420511376,1776195034662,-46.99560204,0.00010699,2]
[420511377,1776195034671,-500.0,0.00010699,2]
[420511378,1776195034680,-500.0,0.00010699,2]
[420511379,1776195034689,-500.0,0.00010699,2]
[420511380,1776195034698,-232.81336676,0.00010699,2]
[420511381,1776195034707,-500.0,0.00010699,2]
[420511382,1776195034717,-500.0,0.00010699,2]
[420511383,1776195034726,-500.0,0.00010699,2]
[420511384,1776195034735,-500.0,0.00010699,2]
[420511385,1776195034745,-500.0,0.00010699,2]
[420511386,1776195034755,-500.0,0.00010699,2]
[420511387,1776195034764,-500.0,0.00010699,2]
[420511388,1776195034774,-500.0,0.00010699,2]
[420511389,1776195034783,-500.0,0.00010699,2]
[420511390,1776195034795,-500.0,0.00010699,2]
[420511391,1776195034805,-500.0,0.00010699,2]
[420511392,1776195034813,-500.0,0.00010699,2]
[420511393,1776195034823,-500.0,0.00010699,2]
[420511394,1776195034835,-354.18,0.00010699,2]
[420511395,1776195034844,-500.0,0.00010699,2]
[420511396,1776195034854,-500.0,0.00010699,2]
[420511397,1776195034876,-500.0,0.00010699,2]
[420511398,1776195034885,-500.0,0.00010699,2]
[420511399,1776195034896,-458.74638839,0.00010699,2]
[420511400,1776195034905,-500.0,0.00010699,2]
[420511401,1776195034920,-500.0,0.00010699,2]
[420511402,1776195034929,-500.0,0.00010699,2]
[420511403,1776195034940,-500.0,0.00010699,2]
[420511404,1776195034949,-500.0,0.00010699,2]
[420511405,1776195034970,-602.78448126,0.00010699,2]
[420511406,1776195034980,-500.0,0.00010699,2]
[420511407,1776195034990,-500.0,0.00010699,2]
[420511408,1776195035009,-500.0,0.00010699,2]
[420511409,1776195035018,-500.0,0.00010699,2]
[420511410,1776195035027,-500.0,0.00010699,2]
[420511411,1776195035042,-500.0,0.00010699,2]
[420511412,1776195035055,-500.0,0.00010699,2]
[420511413,1776195035064,-500.0,0.00010699,2]
[420511414,1776195035073,-500.0,0.00010699,2]
[420511415,1776195035091,-500.0,0.00010699,2]
[420511416,1776195035101,-500.0,0.00010699,2]
[420511417,1776195035110,-41832.64744533,0.000107,2]
[420511418,1776195035125,-440.0,0.000107,2]
[420511419,1776195035139,-391252.6354745,0.000107,2]
[420511420,1776195035151,-12752.09364775,0.000107,2]
[420511421,1776195035169,-1352.2871127,0.000107,2]
[420511422,1776195035183,-197.10589673,0.000107,2]
[420511423,1776195035195,-223.37067471,0.000107,2]
[420511424,1776195035210,-11677.5156936,0.000107,2]
[420511425,1776195035224,-200.0,0.000107,2]
[420511426,1776195035234,-500.0,0.000107,2]
[420511427,1776195035250,-500.0,0.000107,2]
[420511428,1776195035265,-3219.7935633,0.000107,2]
[420511429,1776195035275,-150.0,0.000107,2]
[420511430,1776195035293,-420.0,0.00010707,2]
[420511431,1776195035310,-1680.0,0.00010707,2]
[420511432,1776195035321,-420.0,0.00010707,2]
[420511433,1776195035339,-250.0,0.00010707,2]
[420511434,1776195035358,-1262.0,0.00010708,2]
[420511435,1776195035370,-1254.0,0.00010729,2]
[420511436,1776195035401,-200.0,0.00010807,2]
[420511437,1776195035424,-269.55,0.0001085,2]
[420511438,1776195035485,-500.0,0.00010875,2]
[420511439,1776195035552,-500.0,0.00010877,2]
[420511440,1776195035592,-200.0,0.00010915,2]
[420511441,1776195035621,-200.0,0.00010959,2]
[420511442,1776195035647,-150.0,0.00010959,2]
[420511443,1776195035669,-354.18,0.00010973,2]
[420511444,1776195035699,-521.57565016,0.00010974,2]
[420511445,1776195035727,-161.54,0.00010997,2]
[420511446,1776195035757,-600.0,0.00010998,2]
[420511447,1776195035782,-250.0,0.00010999,2]
[420511448,1776195035805,-195.0,0.00010999,2]
[420511449,1776195035826,-2325.22288151,0.00010999,2]
[420511453,1776195038464,-15245.1,9.678e-05,2]
[420511454,1776195038480,-1532.1440474,0.00010999,2]
[420511455,1776195038490,-193.0,0.00010999,2]
[420511456,1776195038502,-150.0,0.00011,2]
[420511457,1776195038520,-200.0,0.00011024,2]
[420511458,1776195038530,-200.0,0.00011061,2]
[420511459,1776195038541,-3435.59394534,0.00011099,2]
[420511460,1776195038566,-1782.15569115,0.00011099,2]
[420511461,1776195038576,-5217.74963644,0.00011111,2]
[420511462,1776195038586,-200.0,0.00011134,2]
[420511463,1776195038598,-1000.0509,0.00011196,2]
[420511464,1776195038608,-571.84377241,0.00011221,2]
[420511465,1776195038624,-428.15622759,0.00011221,2]
[420511466,1776195038634,-1000.0,0.00011221,2]
[420511467,1776195038644,-150.0,0.00011233,2]
[420511468,1776195038655,-200.0,0.00011233,2]
[420511469,1776195038664,-354.18,0.00011247,2]
[420511470,1776195038673,-151.0,0.00011272,2]
[420511471,1776195038683,-2650.87032041,0.00011281,2]
[420511472,1776195038702,-4810.94195086,0.00011281,2]
[420511473,1776195038716,-154.21772873,0.00011281,2]
[420511474,1776195038725,-1358.94276703,0.00011281,2]
[420511475,1776195038737,-9046.62959513,0.00011281,2]
[420511476,1776195038748,-796.55986639,0.00011281,2]
[420511477,1776195038763,-4264.19002541,0.00011281,2]
[420511478,1776195038862,-14533.66774604,0.00011281,2]
[420511479,1776195038873,-1211.84,0.00011281,2]
[420511480,1776195038882,-22068.17,0.00011281,2]
[420511481,1776195038892,-150.0,0.000113,2]
[420511482,1776195038901,-200.0,0.00011345,2]
[420511483,1776195038910,-200.0,0.00011459,2]
[420511484,1776195038921,-354.18,0.00011521,2]
[420511485,1776195038931,-200.0,0.00011573,2]
[420511486,1776195038940,-150.0,0.000116,2]
[420511487,1776195038950,-5217.74963644,0.00011622,2]
[420511488,1776195038960,-200.0,0.00011689,2]
[420511489,1776195038970,-500.0,0.000117,2]
[420511490,1776195039295,-500.0,0.000117,2]
[420511491,1776195039320,-500.0,0.000117,2]
[420511492,1776195039329,-458.63773172,0.000117,2]
[420511493,1776195039339,-166.4,0.00011721,2]
[420511494,1776195039348,-255.0,0.00011736,2]
[420511495,1776195039360,-271.07492803,0.00011749,2]
[420511496,1776195039370,-587.0,0.00011778,2]
[420511497,1776195039380,-2351.0,0.00011778,2]
[420511498,1776195039389,-467.0,0.00011778,2]
[420511499,1776195039398,-354.22,0.00011795,2]
[420511500,1776195039408,-190.8369,0.000118,2]
[420511501,1776195039418,-5615.52,0.000118,2]
[420511502,1776195039428,-391.44,0.00011853,2]
[420511503,1776195039437,-150.0,0.000119,2]
[420511504,1776195039447,-500.0,0.00012018,2]
[420511505,1776195039457,-2000.0,0.00012023,2]
[420511506,1776195039466,-450.0,0.00012023,7]
[420511507,1776195039476,-162.46215283,0.00012042,2]
[420511508,1776195039485,-2605.6059468,0.00012074,2]
[420511509,1776195039496,-1500.0,0.00012131,2]
[420511510,1776195039505,-5217.74963644,0.00012133,2]
[420511511,1776195039515,-500.69201092,0.00012145,2]
[420511512,1776195039524,-2718.13,0.0001218,2]
[420511513,1776195039534,-239.11,0.000122,2]
[420511514,1776195039544,-166.66,0.00012225,2]
[420511515,1776195039553,-1337.0,0.00012366,5]
[420511516,1776195039563,-160.3040822,0.0001237,2]
[420511517,1776195039572,-581.3892722,0.00012381,2]
[420511518,1776195039582,-199.552537,0.00012471,2]
[420511519,1776195039591,-160.0,0.00012471,2]
[420511520,1776195039601,-172.582891,0.00012471,2]
[420511521,1776195039610,-185.165782,0.00012471,2]
[420511522,1776195039620,-257.235691,0.00012471,2]
[420511523,1776195039629,-166.30715,0.00012471,2]
[420511524,1776195039640,-170.277756,0.00012471,2]
[420511525,1776195039649,-255.168846,0.00012471,2]
[420511526,1776195039659,-500.93469977,0.00012566,2]
[420511527,1776195039668,-68423.73492004,0.00012616,2]
[420511538,1776195040513,-972.98655423,0.00012616,2]
[420511540,1776195040530,-2316.90688967,0.00012616,2]
[420511541,1776195040542,-10808.516081,0.00012616,2]
[420511542,1776195040558,-6088.19891906,0.00012616,2]
[420511543,1776195040574,-3206.0983523,0.00012616,2]
[420511544,1776195040583,-151.0,0.00012616,2]
[420511545,1776195040596,-235.621081,0.00012616,2]
[420511546,1776195040606,-235.621081,0.00012616,2]
[420511547,1776195040620,-235.621081,0.00012616,2]
[420511548,1776195040629,-235.621081,0.00012616,2]
[420511549,1776195040646,-151.0,0.00012616,2]
[420511550,1776195040660,-157.466424,0.00012616,2]
[420511551,1776195040669,-157.466424,0.00012616,2]
[420511552,1776195040682,-157.466424,0.00012616,2]
[420511553,1776195040699,-157.466424,0.00012616,2]
[420511554,1776195040716,-151.0,0.00012616,2]
[420511555,1776195040727,-151.0,0.00012616,2]
[420511556,1776195040738,-151.0,0.00012616,2]
[420511557,1776195040754,-151.0,0.00012616,2]
[420511558,1776195040766,-5000.0,0.00012625,2]
[420511559,1776195040783,-249.29629812,0.00012625,2]
[420511560,1776195040798,-200.0,0.00012625,2]
[420511561,1776195040809,-200.0,0.00012625,2]
[420511562,1776195040834,-5217.74963644,0.00012644,2]
[420511563,1776195040846,-5308.62,0.00012658,2]
[420511564,1776195040859,-578.20924308,0.0001268,2]
[420511565,1776195040879,-500.0,0.0001268,2]
[420511566,1776195040891,-721.12765535,0.0001268,2]
[420511567,1776195040906,-301.45296488,0.0001268,2]
[420511568,1776195040925,-151.0,0.0001268,2]
[420511569,1776195040941,-743.50770149,0.0001268,2]
[420511570,1776195040950,-174.61919144,0.0001268,2]
[420511571,1776195040978,-288.75734877,0.0001268,2]
[420511572,1776195040990,-411.57624402,0.0001268,2]
[420511573,1776195041012,-5066.32410865,0.00012725,2]
[420511574,1776195041176,-133467.29515578,0.00012725,2]
[420511575,1776195041267,-16337.6022456,0.00012725,2]
[420511576,1776195041384,-504.28224,0.00012725,2]
[420511577,1776195041445,-1802.32655586,0.00012725,2]
[420511578,1776195041531,-475.80353924,0.00012725,2]
[420511579,1776195041614,-651.98732006,0.00012725,2]
[420511580,1776195041700,-1039.43979977,0.00012725,2]
[420511581,1776195042039,-34692.80903504,0.00012725,2]
[420511582,1776195042064,-151.0,0.00012725,2]
[420511583,1776195042090,-151.0,0.00012725,2]
[420511584,1776195042113,-151.0,0.00012725,2]
[420511585,1776195042134,-151.0,0.00012725,2]
[420511586,1776195042151,-235.621081,0.00012725,2]
[420511587,1776195042162,-235.621081,0.00012725,2]
[420511588,1776195042173,-235.621081,0.00012725,2]
[420511589,1776195042186,-235.621081,0.00012725,2]
[420511590,1776195042196,-151.0,0.00012725,2]
[420511591,1776195042206,-157.466424,0.00012725,2]
[420511592,1776195042216,-157.466424,0.00012725,2]
[420511593,1776195042226,-157.466424,0.00012725,2]
[420511594,1776195042236,-157.466424,0.00012725,2]
[420511595,1776195042246,-151.0,0.00012725,2]
[420511596,1776195042255,-151.0,0.00012725,2]
[420511597,1776195042265,-151.0,0.00012725,2]
[420511598,1776195042274,-238.561832,0.00012725,2]
[420511599,1776195042284,-500.0,0.00012735,2]
[420511600,1776195042293,-151.0,0.00012735,2]
[420511601,1776195042302,-522.0,0.0001275,2]
[420511602,1776195042311,-200.0,0.00012751,2]
[420511603,1776195042321,-200.0,0.00012751,2]
[420511604,1776195042330,-500.0,0.0001279,2]
[420511605,1776195042340,-151.0,0.0001279,2]
[420511606,1776195042349,-500.0,0.00012845,2]
[420511607,1776195042359,-269.0,0.0001287,2]
[420511608,1776195042369,-200.0,0.00012879,2]
[420511609,1776195042378,-200.0,0.00012879,2]
[420511610,1776195042388,-500.0,0.000129,2]
[420511611,1776195042397,-900.0,0.000129,4]
[420511612,1776195042406,-500.0,0.00012955,2]
[420511613,1776195042415,-823.0,0.00012956,2]
[420511614,1776195042425,-3292.0,0.00012956,2]
[420511615,1776195042434,-250.0,0.00013,2]
[420511616,1776195042443,-200.0,0.00013008,2]
[420511617,1776195042452,-200.0,0.00013008,2]
[420511618,1776195042462,-500.0,0.0001301,2]
[420511619,1776195042471,-1466.0,0.00013045,5]
[420511620,1776195042481,-350.0,0.00013046,2]
[420511621,1776195042491,-500.0,0.00013065,2]
[420511622,1776195042500,-235.340305,0.00013094,2]
[420511623,1776195042510,-242.7917,0.000131,2]
[420511624,1776195042520,-200.0,0.00013138,2]
[420511625,1776195042529,-200.0,0.00013138,2]
[420511626,1776195042538,-5217.74963644,0.00013156,2]
[420511627,1776195042548,-166.66,0.00013234,2]
[420511628,1776195042557,-350.0,0.00013246,2]
[420511629,1776195042567,-2000.0,0.00013404,2]
[420511630,1776195042576,-3240.0,0.00013425,2]
[420511631,1776195042585,-1600.0,0.00013427,2]
[420511632,1776195042594,-168.0,0.00013453,2]
[420511633,1776195042603,-168.0,0.0001349,2]
[420511634,1776195042614,-1232.0,0.000135,5]
[420511635,1776195042623,-506.0,0.000135,2]
[420511636,1776195042632,-350.0,0.00013503,2]
[420511637,1776195042641,-249.29629806,0.00013504,2]
[420511638,1776195042651,-168.0,0.00013525,2]
[420511639,1776195042661,-168.0,0.00013586,2]
[420511640,1776195042670,-168.0,0.00013648,2]
[420511641,1776195042679,-5217.74963644,0.00013667,2]
[420511642,1776195042688,-192.38895204,0.00013689,2]
[420511643,1776195042699,-168.0,0.00013695,2]
[420511644,1776195042709,-500.0,0.00013698,2]
[420511645,1776195042718,-500.0,0.00013698,2]
[420511646,1776195042727,-500.0,0.00013698,2]
[420511647,1776195042739,-615.23638296,0.00013698,2]
[420511648,1776195042749,-502.14529776,0.00013698,2]
[420511649,1776195042758,-500.0,0.00013699,2]
[420511650,1776195042768,-500.0,0.00013699,2]
[420511651,1776195042779,-500.0,0.00013699,2]
[420511652,1776195042789,-500.0,0.00013699,2]
[420511653,1776195042798,-500.0,0.00013699,2]
[420511654,1776195042808,-4999.99,0.00013699,2]
[420511655,1776195042818,-3918.75451626,0.00013699,2]
[420511656,1776195042831,-1819.1209591,0.00013699,2]
[420511657,1776195042847,-454.35,0.00013699,2]
[420511658,1776195042860,-390.204,0.00013699,2]
[420511659,1776195042872,-1135.96567531,0.00013699,2]
[420511660,1776195042884,-2281.59484933,0.00013699,2]
[420511661,1776195042897,-1906.45687389,0.00013699,2]
[420511664,1776195043399,-3594.06331873,0.00013699,2]
[420511665,1776195043411,-450.01980738,0.00013699,2]
[420511666,1776195043422,-692.18019262,0.00013699,2]
[420511667,1776195043433,-5326.51044459,0.00013699,2]
[420511668,1776195043473,-1161.92936279,0.00013699,2]
[420511669,1776195043482,-4538.52279757,0.00013699,2]
[420511670,1776195043493,-500.0,0.00013699,2]
[420511671,1776195043506,-6821.50614949,0.00013699,2]
[420511672,1776195043517,-341.04,0.00013699,2]
[420511673,1776195043719,-4051.58577808,0.00013699,2]
[420511682,1776195046579,-487.37999976,0.00013508,2]
[420511683,1776195046591,-738.4554281,0.00013508,2]
[420511684,1776195046602,-774.16457214,0.00013508,2]
[420511685,1776195046613,-8747.33527486,0.00013699,2]
[420511686,1776195046626,-2351.20091835,0.00013699,2]
[420511687,1776195046638,-11909.45718096,0.00013699,2]
[420511688,1776195046649,-4534.85779296,0.00013699,2]
[420511689,1776195046670,-385.86598933,0.00013699,2]
[420511690,1776195046683,-494.61771879,0.00013699,2]
[420511691,1776195046700,-331.11039961,0.00013699,2]
[420511692,1776195046718,-9999.99,0.00013699,2]
[420511693,1776195046728,-2461.14,0.00013699,2]
[420511694,1776195046737,-5391.34,0.00013699,2]
[420511695,1776195046757,-299.99,0.00013699,2]
[420511696,1776195046770,-999.99,0.00013699,2]
[420511697,1776195046779,-11407.47,0.00013699,2]
[420511698,1776195046799,-1584.12,0.00013699,2]
[420511699,1776195046813,-972.4,0.00013699,2]
[420511700,1776195046823,-313.32,0.00013699,2]
[420511701,1776195046842,-499.99,0.00013699,2]
[420511702,1776195046856,-150.99,0.00013699,2]
[420511703,1776195046866,-518.64,0.00013699,2]
[420511704,1776195046878,-4170.85351128,0.00013699,2]
[420511705,1776195046910,-5829.13648872,0.00013699,2]
[420511706,1776195046933,-59170.86351128,0.00013699,2]
[420511707,1776195047010,-651.98542784,0.00013699,2]
[420511708,1776195047035,-11653.70106088,0.00013699,2]
[420511709,1776195047044,-3899.0,0.00013699,2]
[420511710,1776195047062,-166.66,0.00013699,2]
[420511711,1776195047075,-200.0,0.00013699,2]
[420511712,1776195047085,-403.63,0.00013699,2]
[420511713,1776195047097,-351.46732,0.00013699,2]
[420511714,1776195047113,-351.46732,0.00013699,2]
[420511715,1776195047129,-351.46732,0.00013699,2]
[420511716,1776195047146,-351.46732,0.00013699,2]
[420511717,1776195047157,-351.46732,0.00013699,2]
[420511719,1776195047175,-351.46732,0.00013699,2]
[420511721,1776195047191,-351.46732,0.00013699,2]
[420511723,1776195047206,-351.46732,0.00013699,2]
[420511725,1776195047224,-151.0,0.00013699,2]
[420511727,1776195047238,-151.0,0.00013699,2]
[420511729,1776195047251,-151.0,0.00013699,2]
[420511731,1776195047263,-151.0,0.00013699,2]
[420511733,1776195047274,-151.0,0.00013699,2]
[420511735,1776195047291,-151.0,0.00013699,2]
[420511737,1776195047300,-151.0,0.00013699,2]
[420511739,1776195047317,-560.33725224,0.00013699,2]
[420511741,1776195047327,-280.54399687,0.00013699,2]
[420511743,1776195047343,-500.0,0.00013699,2]
[420511744,1776195047357,-500.0,0.00013699,2]
[420511745,1776195047367,-500.0,0.00013699,2]
[420511746,1776195047381,-500.0,0.00013699,2]
[420511747,1776195047398,-500.0,0.00013699,2]
[420511748,1776195047408,-500.0,0.00013699,2]
[420511749,1776195047418,-500.88471616,0.00013699,2]
[420511750,1776195047431,-500.0,0.00013699,2]
[420511751,1776195047445,-500.0,0.00013699,2]
[420511752,1776195047455,-500.0,0.00013699,2]
[420511753,1776195047465,-212.83822444,0.00013699,2]
[420511754,1776195047483,-500.0,0.00013699,2]
[420511755,1776195047493,-500.0,0.00013699,2]
[420511756,1776195047504,-500.0,0.00013699,2]
[420511757,1776195047514,-368.1989611,0.00013699,2]
[420511758,1776195047530,-500.0,0.00013699,2]
[420511759,1776195047541,-500.0,0.00013699,2]
[420511760,1776195047551,-500.0,0.00013699,2]
[420511761,1776195047563,-500.0,0.00013699,2]
[420511762,1776195047576,-500.0,0.00013699,2]
[420511763,1776195047586,-351.46732,0.00013699,2]
[420511764,1776195047595,-351.46732,0.00013699,2]
[420511765,1776195047606,-351.46732,0.00013699,2]
[420511766,1776195047620,-351.46732,0.00013699,2]
[420511767,1776195047629,-351.46732,0.00013699,2]
[420511768,1776195047644,-351.46732,0.00013699,2]
[420511769,1776195047660,-351.46732,0.00013699,2]
[420511770,1776195047670,-351.46732,0.00013699,2]
[420511771,1776195047680,-1898.57304,0.00013699,2]
[420511772,1776195047690,-235.621081,0.00013699,2]
[420511773,1776195047706,-235.621081,0.00013699,2]
[420511774,1776195047716,-235.621081,0.00013699,2]
[420511775,1776195047726,-235.621081,0.00013699,2]
[420511776,1776195047739,-235.621081,0.00013699,2]
[420511777,1776195047753,-235.621081,0.00013699,2]
[420511778,1776195047763,-235.621081,0.00013699,2]
[420511779,1776195047773,-235.621081,0.00013699,2]
[420511780,1776195047783,-151.0,0.00013699,2]
[420511781,1776195047794,-151.0,0.00013699,2]
[420511782,1776195047803,-151.0,0.00013699,2]
[420511783,1776195047813,-151.0,0.00013699,2]
[420511784,1776195047823,-151.0,0.00013699,2]
[420511785,1776195047836,-151.0,0.00013699,2]
[420511786,1776195047847,-151.0,0.00013699,2]
[420511787,1776195047857,-151.0,0.00013699,2]
[420511788,1776195047867,-151.0,0.00013699,2]
[420511789,1776195047878,-286.576772,0.00013699,2]
[420511790,1776195047890,-157.466424,0.00013699,2]
[420511791,1776195047900,-157.466424,0.00013699,2]
[420511792,1776195047910,-157.466424,0.00013699,2]
[420511793,1776195047922,-157.466424,0.00013699,2]
[420511794,1776195047933,-157.466424,0.00013699,2]
[420511795,1776195047943,-157.466424,0.00013699,2]
[420511796,1776195047953,-157.466424,0.00013699,2]
[420511797,1776195047967,-157.466424,0.00013699,2]
[420511798,1776195047978,-151.0,0.00013699,2]
[420511799,1776195047989,-151.0,0.00013699,2]
[420511800,1776195048001,-151.0,0.00013699,2]
[420511801,1776195048013,-151.0,0.00013699,2]
[420511802,1776195048024,-151.0,0.00013699,2]
[420511803,1776195048034,-151.0,0.00013699,2]
[420511804,1776195048051,-3781.0,0.00013753,2]
[420511805,1776195048061,-150.0,0.00013759,2]
[420511806,1776195048071,-150.0,0.00013759,2]
[420511807,1776195048083,-150.0,0.00013759,2]
[420511808,1776195048099,-150.0,0.00013759,2]
[420511809,1776195048108,-150.0,0.00013759,2]
[420511810,1776195048118,-150.0,0.00013759,2]
[420511811,1776195048137,-150.0,0.00013759,2]
[420511812,1776195048149,-150.0,0.00013759,2]
[420511813,1776195048160,-168.5,0.00013788,2]
[420511814,1776195048173,-168.5,0.00013788,2]
[420511815,1776195048189,-155.60933382,0.00013797,2]
[420511816,1776195048199,-3781.0,0.00013802,2]
[420511817,1776195048214,-166.66,0.00013836,2]
[420511818,1776195048234,-219.10270936,0.00013874,2]
[420511819,1776195048244,-1800.0,0.000139,5]
[420511820,1776195048274,-160.0,0.00013962,2]
[420511821,1776195048288,-166.66,0.00013973,2]
[420511822,1776195048331,-3781.0,0.00014024,2]
[420511823,1776195048489,-166.66,0.0001411,2]
[420511824,1776195048940,-850.409,0.00014121,2]
[420511825,1776195049353,-151.0,0.00014157,2]
[420511826,1776195049525,-151.0,0.00014157,2]
[420511827,1776195049635,-1264.0,0.00014157,2]
[420511828,1776195049796,-926.0,0.00014157,2]
[420511829,1776195049962,-1218.0,0.00014157,2]
[420511830,1776195050057,-1047.0,0.00014157,2]
[420511831,1776195050220,-1348.0,0.00014157,2]
[420511832,1776195050342,-6027.0,0.00014157,2]
[420511833,1776195050524,-779.29838477,0.00014164,2]
[420511834,1776195050663,-5217.74963644,0.00014178,2]
[420511835,1776195050699,-350.0,0.00014184,2]
[420511836,1776195050744,-152.0,0.00014208,2]
[420511837,1776195050759,-167.0,0.00014208,2]
[420511838,1776195050805,-779.29838477,0.00014219,2]
[420511839,1776195050817,-151.0,0.00014236,2]
[420511840,1776195050867,-151.0,0.00014236,2]
[420511841,1776195050910,-151.0,0.00014236,2]
[420511842,1776195050966,-157.466424,0.00014236,2]
[420511843,1776195051127,-157.466424,0.00014236,2]
[420511844,1776195051250,-157.466424,0.00014236,2]
[420511845,1776195051371,-157.466432,0.00014236,2]
[420511846,1776195051445,-151.0,0.00014236,2]
[420511847,1776195051546,-151.0,0.00014236,2]
[420511848,1776195051692,-151.0,0.00014236,2]
[420511849,1776195051792,-14242.33190172,0.00014236,2]
[420511850,1776195051819,-5529.30820388,0.00014236,2]
[420511851,1776195051834,-235.621081,0.00014237,2]
[420511852,1776195051855,-235.621081,0.00014237,2]
[420511853,1776195051886,-235.621081,0.00014237,2]
[420511854,1776195051896,-235.621082,0.00014237,2]
[420511855,1776195051922,-202.578669,0.00014237,2]
[420511856,1776195051932,-153.83,0.00014239,2]
[420511857,1776195051943,-166.66,0.00014243,2]
[420511858,1776195051972,-166.66,0.00014247,2]
[420511859,1776195051995,-500.0,0.00014247,2]
[420511860,1776195052005,-515.34188913,0.00014247,2]
[420511861,1776195052015,-1000.0,0.00014247,2]
[420511862,1776195052029,-1001.87259391,0.00014247,2]
[420511863,1776195052048,-1000.0,0.00014247,2]
[420511864,1776195052061,-1000.0,0.00014247,2]
[420511865,1776195052093,-1000.0,0.00014247,2]
[420511866,1776195052104,-1152.0,0.00014252,2]
[420511867,1776195052115,-4609.0,0.00014252,2]
[420511868,1776195052139,-155.60933382,0.00014257,2]
[420511869,1776195052153,-150.0,0.00014268,2]
[420511870,1776195052178,-779.29838477,0.00014274,2]
[420511871,1776195052189,-779.29838477,0.00014329,2]
[420511872,1776195052201,-249.29629806,0.00014383,2]
[420511873,1776195052226,-166.66,0.00014384,2]
[420511874,1776195052236,-403.63,0.00014384,2]
[420511875,1776195052260,-779.29838477,0.00014384,2]
[420511876,1776195052274,-400.83713477,0.00014386,4]
[420511877,1776195052286,-1377.92861395,0.00014398,2]
[420511878,1776195052303,-308.8909,0.000144,2]
[420511879,1776195052318,-779.29838477,0.00014438,2]
[420511880,1776195052330,-779.29838477,0.00014493,2]
[420511881,1776195052347,-363.19375129,0.00014504,2]
[420511882,1776195052362,-151.0,0.00014504,2]
[420511883,1776195052374,-151.0,0.00014504,2]